[Event "Late-Titled-Tuesday-Blitz-September-26-2023"]
[Site "Chess.com"]
[Date "2023.09.26"]
[Round "3"]
[White "jaskol95"]
[Black "topin8"]
[Result "1-0"]
[WhiteElo "2628"]
[BlackElo "2433"]
[TimeControl "180+1"]
[EndTime "14:27:40 PDT"]
[Termination "jaskol95 won on time"]

1. d4 {[%clk 0:03:00.9]} 1... Nf6 {[%clk 0:02:59.4]} 2. Nc3 {[%clk 0:03:01.1]}
2... c5 {[%clk 0:02:59.5]} 3. d5 {[%clk 0:03:00.3]} 3... d6 {[%clk 0:02:59.9]}
4. e4 {[%clk 0:03:00.6]} 4... g6 {[%clk 0:03:00.4]} 5. f4 {[%clk 0:02:58.8]}
5... Bg7 {[%clk 0:02:59.5]} 6. Nf3 {[%clk 0:02:59.5]} 6... O-O {[%clk
0:02:59.4]} 7. h3 {[%clk 0:02:59.1]} 7... e6 {[%clk 0:02:59.8]} 8. Be2 {[%clk
0:02:54.2]} 8... exd5 {[%clk 0:02:59.6]} 9. exd5 {[%clk 0:02:54.7]} 9... Nh5
{[%clk 0:01:54.3]} 10. O-O {[%clk 0:02:45.8]} 10... Ng3 {[%clk 0:01:52]} 11. Re1
{[%clk 0:02:45.8]} 11... Nxe2+ {[%clk 0:01:48.7]} 12. Qxe2 {[%clk 0:02:43.3]}
12... Nd7 {[%clk 0:01:49.6]} 13. f5 {[%clk 0:02:27.6]} 13... Ne5 {[%clk
0:01:44.7]} 14. Nxe5 {[%clk 0:02:24.6]} 14... Bxe5 {[%clk 0:01:38.5]} 15. fxg6
{[%clk 0:02:23.5]} 15... fxg6 {[%clk 0:01:36.8]} 16. Bh6 {[%clk 0:02:15.4]}
16... Re8 {[%clk 0:01:16.4]} 17. Kh1 {[%clk 0:01:52]} 17... Qh4 {[%clk
0:01:01.3]} 18. Qe3 {[%clk 0:01:48.7]} 18... Bf5 {[%clk 0:00:45.8]} 19. Qg5
{[%clk 0:01:09.1]} 19... Qxg5 {[%clk 0:00:31.7]} 20. Bxg5 {[%clk 0:01:09.2]}
20... Bg3 {[%clk 0:00:29.2]} 21. Rf1 {[%clk 0:00:59.7]} 21... a6 {[%clk
0:00:19.2]} 22. Bf4 {[%clk 0:00:57.5]} 22... Bxf4 {[%clk 0:00:18.4]} 23. Rxf4
{[%clk 0:00:58.4]} 23... Re5 {[%clk 0:00:12.3]} 24. Raf1 {[%clk 0:00:57.1]}
24... Rae8 {[%clk 0:00:09.5]} 25. R1f2 {[%clk 0:00:56.4]} 25... Re1+ {[%clk
0:00:08.9]} 26. Kh2 {[%clk 0:00:56.9]} 26... R1e7 {[%clk 0:00:07.5]} 27. g4
{[%clk 0:00:53.1]} 27... Bd7 {[%clk 0:00:07.5]} 28. Kg3 {[%clk 0:00:51.7]} 28...
b5 {[%clk 0:00:05.4]} 29. a3 {[%clk 0:00:45.3]} 29... a5 {[%clk 0:00:04.6]} 30.
b4 {[%clk 0:00:44.5]} 30... axb4 {[%clk 0:00:04.8]} 31. axb4 {[%clk 0:00:44.8]}
31... Re3+ {[%clk 0:00:05.1]} 32. R2f3 {[%clk 0:00:44.7]} 32... Rxf3+ {[%clk
0:00:05.4]} 33. Kxf3 {[%clk 0:00:43.7]} 33... Kg7 {[%clk 0:00:04.1]} 34. Ne4
{[%clk 0:00:41]} 34... cxb4 {[%clk 0:00:03.1]} 35. Nxd6 {[%clk 0:00:41.6]} 35...
Re7 {[%clk 0:00:03.4]} 36. Rxb4 {[%clk 0:00:37.8]} 36... Re5 {[%clk 0:00:03.6]}
37. Rd4 {[%clk 0:00:33.6]} 37... Re1 {[%clk 0:00:03.5]} 38. Ne4 {[%clk
0:00:32.5]} 38... Rf1+ {[%clk 0:00:03.6]} 39. Kg2 {[%clk 0:00:32.3]} 39... Rc1
{[%clk 0:00:03.7]} 40. Rd2 {[%clk 0:00:32]} 40... Kf7 {[%clk 0:00:03.6]} 41. Re2
{[%clk 0:00:28.5]} 41... Kg7 {[%clk 0:00:03.3]} 42. Nc5 {[%clk 0:00:27.8]} 42...
Bc8 {[%clk 0:00:03.7]} 43. d6 {[%clk 0:00:27.5]} 43... b4 {[%clk 0:00:03.1]} 44.
d7 {[%clk 0:00:27.3]} 44... Bxd7 {[%clk 0:00:03.6]} 45. Nxd7 {[%clk 0:00:28.2]}
45... Rb1 {[%clk 0:00:03.5]} 46. Nc5 {[%clk 0:00:28.1]} 46... Rb2 {[%clk
0:00:03.6]} 47. Nd3 {[%clk 0:00:28.1]} 1-0

[Event "Late-Titled-Tuesday-Blitz-September-26-2023"]
[Site "Chess.com"]
[Date "2023.09.26"]
[Round "3"]
[White "Chessdreamer2020"]
[Black "cristiano78"]
[Result "1-0"]
[WhiteElo "2539"]
[BlackElo "2256"]
[TimeControl "180+1"]
[EndTime "14:27:41 PDT"]
[Termination "Chessdreamer2020 won on time"]

1. e4 {[%clk 0:02:59.3]} 1... c5 {[%clk 0:02:59.3]} 2. Nf3 {[%clk 0:02:59.3]}
2... d6 {[%clk 0:02:59.4]} 3. Bb5+ {[%clk 0:02:55.4]} 3... Bd7 {[%clk
0:02:59.1]} 4. c4 {[%clk 0:02:54.2]} 4... g6 {[%clk 0:02:57.1]} 5. Nc3 {[%clk
0:02:54.1]} 5... Bg7 {[%clk 0:02:57]} 6. d4 {[%clk 0:02:54.1]} 6... cxd4 {[%clk
0:02:56.9]} 7. Nxd4 {[%clk 0:02:55]} 7... Nc6 {[%clk 0:02:57.1]} 8. Be3 {[%clk
0:02:54.6]} 8... Nf6 {[%clk 0:02:56.7]} 9. O-O {[%clk 0:02:54.4]} 9... O-O
{[%clk 0:02:56.6]} 10. f3 {[%clk 0:02:54.9]} 10... a6 {[%clk 0:02:56.3]} 11. Ba4
{[%clk 0:02:44]} 11... Rc8 {[%clk 0:02:53.2]} 12. Nde2 {[%clk 0:02:41.1]} 12...
Ne5 {[%clk 0:02:48.4]} 13. Bxd7 {[%clk 0:02:39.2]} 13... Qxd7 {[%clk 0:02:21]}
14. b3 {[%clk 0:02:40.1]} 14... b5 {[%clk 0:02:19.1]} 15. cxb5 {[%clk 0:02:37]}
15... axb5 {[%clk 0:02:18]} 16. Rc1 {[%clk 0:02:36.6]} 16... b4 {[%clk
0:02:17.7]} 17. Na4 {[%clk 0:02:34.7]} 17... Qb5 {[%clk 0:02:14]} 18. Nd4 {[%clk
0:02:31.6]} 18... Qa5 {[%clk 0:02:11]} 19. Qd2 {[%clk 0:02:15.8]} 19... Nfd7
{[%clk 0:02:04.4]} 20. f4 {[%clk 0:02:06.2]} 20... Ng4 {[%clk 0:02:02.1]} 21.
Nc6 {[%clk 0:02:04.7]} 21... Rxc6 {[%clk 0:01:57.4]} 22. Rxc6 {[%clk 0:02:03.7]}
22... Nxe3 {[%clk 0:01:56.6]} 23. Qxe3 {[%clk 0:02:04.6]} 23... Nc5 {[%clk
0:01:35.2]} 24. Nxc5 {[%clk 0:01:41]} 24... dxc5 {[%clk 0:01:33.6]} 25. Rxc5
{[%clk 0:01:38.2]} 25... Qxa2 {[%clk 0:01:30]} 26. Rfc1 {[%clk 0:01:19.5]} 26...
Bc3 {[%clk 0:01:28.4]} 27. R5xc3 {[%clk 0:01:06.7]} 27... bxc3 {[%clk
0:01:28.2]} 28. Qxc3 {[%clk 0:01:07.6]} 28... Rb8 {[%clk 0:01:22.2]} 29. b4
{[%clk 0:01:04.1]} 29... Qa7+ {[%clk 0:01:17.3]} 30. Qc5 {[%clk 0:00:58.6]}
30... Qb7 {[%clk 0:01:15.4]} 31. Rc4 {[%clk 0:00:56.8]} 31... Rd8 {[%clk
0:01:08.5]} 32. h3 {[%clk 0:00:56.7]} 32... Kg7 {[%clk 0:00:51.9]} 33. Kh2
{[%clk 0:00:55.4]} 33... Rd2 {[%clk 0:00:46.8]} 34. Qe5+ {[%clk 0:00:52.8]}
34... f6 {[%clk 0:00:44.7]} 35. Qe6 {[%clk 0:00:50.8]} 35... Qa7 {[%clk
0:00:30.2]} 36. Rc5 {[%clk 0:00:46.6]} 36... Rd6 {[%clk 0:00:20.6]} 37. Qc4
{[%clk 0:00:38]} 37... Qa1 {[%clk 0:00:13]} 38. Rc7 {[%clk 0:00:36.6]} 38... Rd1
{[%clk 0:00:06.8]} 39. Rxe7+ {[%clk 0:00:35.7]} 39... Kh6 {[%clk 0:00:07.7]} 40.
Qe2 {[%clk 0:00:21.2]} 1-0

[Event "Late-Titled-Tuesday-Blitz-September-26-2023"]
[Site "Chess.com"]
[Date "2023.09.26"]
[Round "3"]
[White "MMSANCHEZ"]
[Black "BlueWizzard"]
[Result "0-1"]
[WhiteElo "2661"]
[BlackElo "2889"]
[TimeControl "180+1"]
[EndTime "14:27:42 PDT"]
[Termination "BlueWizzard won by resignation"]

1. d4 {[%clk 0:03:00.9]} 1... Nf6 {[%clk 0:02:57.9]} 2. Nf3 {[%clk 0:03:00.3]}
2... b6 {[%clk 0:02:55.2]} 3. e3 {[%clk 0:02:58.6]} 3... Bb7 {[%clk 0:02:54.9]}
4. Bd3 {[%clk 0:02:58.7]} 4... c5 {[%clk 0:02:53.9]} 5. c4 {[%clk 0:02:58.5]}
5... e6 {[%clk 0:02:52.9]} 6. Nc3 {[%clk 0:02:58]} 6... g6 {[%clk 0:02:48.5]} 7.
d5 {[%clk 0:02:46.3]} 7... Bg7 {[%clk 0:02:48.1]} 8. e4 {[%clk 0:02:46.1]} 8...
O-O {[%clk 0:02:46.5]} 9. O-O {[%clk 0:02:45.5]} 9... d6 {[%clk 0:02:45.7]} 10.
h3 {[%clk 0:02:43.9]} 10... Ne8 {[%clk 0:02:26]} 11. a3 {[%clk 0:02:36.3]} 11...
Nd7 {[%clk 0:02:22.9]} 12. b4 {[%clk 0:02:35.6]} 12... Bxc3 {[%clk 0:02:22.1]}
13. Rb1 {[%clk 0:02:32.1]} 13... Bg7 {[%clk 0:02:19.2]} 14. Be2 {[%clk
0:02:18.6]} 14... Ne5 {[%clk 0:02:14.1]} 15. Nd2 {[%clk 0:02:18.7]} 15... f5
{[%clk 0:02:12.7]} 16. f4 {[%clk 0:02:18.4]} 16... Nd7 {[%clk 0:02:11.3]} 17.
dxe6 {[%clk 0:02:18.4]} 17... Ndf6 {[%clk 0:02:09.2]} 18. exf5 {[%clk
0:02:18.6]} 18... gxf5 {[%clk 0:02:08.9]} 19. Bd3 {[%clk 0:02:19]} 19... Ne4
{[%clk 0:02:07.7]} 20. Bxe4 {[%clk 0:02:16]} 20... fxe4 {[%clk 0:02:06.2]} 21.
f5 {[%clk 0:02:16.4]} 21... Qh4 {[%clk 0:02:01]} 22. Rb3 {[%clk 0:01:58.2]}
22... Bd4+ {[%clk 0:01:54.2]} 23. Kh2 {[%clk 0:01:55.1]} 23... Ng7 {[%clk
0:01:45.5]} 24. Qg4 {[%clk 0:01:43.9]} 24... Qxg4 {[%clk 0:01:45.2]} 25. hxg4
{[%clk 0:01:43.4]} 25... h5 {[%clk 0:01:45.6]} 26. Kh3 {[%clk 0:01:28.7]} 26...
e3 {[%clk 0:01:38.6]} 27. Nb1 {[%clk 0:01:14.6]} 27... hxg4+ {[%clk 0:01:31.1]}
28. Kxg4 {[%clk 0:01:14.7]} 28... Bxg2 {[%clk 0:01:22.8]} 29. Rg1 {[%clk
0:01:04.9]} 29... Be4 {[%clk 0:01:08.5]} 30. Bxe3 {[%clk 0:00:59]} 30... Bxf5+
{[%clk 0:01:05.5]} 31. Kh4 {[%clk 0:00:59.5]} 31... Bxe6 {[%clk 0:01:00.7]} 32.
Bxd4 {[%clk 0:00:56.4]} 32... cxd4 {[%clk 0:00:58.8]} 33. Rbg3 {[%clk
0:00:56.4]} 33... Rf7 {[%clk 0:00:58.9]} 34. Nd2 {[%clk 0:00:55.7]} 34... Kh7
{[%clk 0:00:57.8]} 35. Rh1 {[%clk 0:00:41.7]} 35... Rf5 {[%clk 0:00:50.5]} 36.
Rg5 {[%clk 0:00:32.8]} 36... Raf8 {[%clk 0:00:41.7]} 37. Ne4 {[%clk 0:00:32.8]}
37... Kg8 {[%clk 0:00:39.4]} 38. Nxd6 {[%clk 0:00:17.2]} 38... Rf4+ {[%clk
0:00:36.1]} 39. Kg3 {[%clk 0:00:17.5]} 39... Rf3+ {[%clk 0:00:36.5]} 40. Kg2
{[%clk 0:00:17.9]} 40... Rf2+ {[%clk 0:00:36.6]} 41. Kg3 {[%clk 0:00:18.2]}
41... R8f3+ {[%clk 0:00:36.4]} 42. Kh4 {[%clk 0:00:18.8]} 42... d3 {[%clk
0:00:28.8]} 43. Ne8 {[%clk 0:00:18.7]} 43... Rf7 {[%clk 0:00:18.8]} 44. Rhg1
{[%clk 0:00:18.3]} 44... R2f4+ {[%clk 0:00:19.2]} 45. Kg3 {[%clk 0:00:18.1]}
45... R4f5 {[%clk 0:00:18.1]} 46. Rg6 {[%clk 0:00:15.8]} 46... Kf8 {[%clk
0:00:17]} 47. Nd6 {[%clk 0:00:12.7]} 47... R7f6 {[%clk 0:00:17.3]} 48. Rg4
{[%clk 0:00:07.1]} 48... Rf3+ {[%clk 0:00:17.3]} 0-1

[Event "Late-Titled-Tuesday-Blitz-September-26-2023"]
[Site "Chess.com"]
[Date "2023.09.26"]
[Round "3"]
[White "Bauman_Guy"]
[Black "vova-79"]
[Result "1-0"]
[WhiteElo "2868"]
[BlackElo "2614"]
[TimeControl "180+1"]
[EndTime "14:27:53 PDT"]
[Termination "Bauman_Guy won by resignation"]

1. e4 {[%clk 0:03:00.9]} 1... c6 {[%clk 0:02:59.5]} 2. d4 {[%clk 0:03:00.9]}
2... d5 {[%clk 0:03:00.4]} 3. e5 {[%clk 0:03:01.8]} 3... c5 {[%clk 0:03:00.1]}
4. dxc5 {[%clk 0:03:01.6]} 4... e6 {[%clk 0:02:59.8]} 5. Nf3 {[%clk 0:03:01.2]}
5... Bxc5 {[%clk 0:02:58.5]} 6. a3 {[%clk 0:03:02.1]} 6... Nc6 {[%clk 0:02:58]}
7. Bd3 {[%clk 0:03:02.2]} 7... Nge7 {[%clk 0:01:54.3]} 8. O-O {[%clk 0:03:01]}
8... Ng6 {[%clk 0:01:54.4]} 9. b4 {[%clk 0:03:00.8]} 9... Bb6 {[%clk 0:01:50.3]}
10. Bb2 {[%clk 0:03:00.4]} 10... Nf4 {[%clk 0:01:49.6]} 11. c4 {[%clk
0:02:56.6]} 11... O-O {[%clk 0:01:25.8]} 12. Nc3 {[%clk 0:02:53.7]} 12... a6
{[%clk 0:01:25.6]} 13. c5 {[%clk 0:02:46.5]} 13... Bc7 {[%clk 0:01:09.4]} 14.
Re1 {[%clk 0:02:46.3]} 14... d4 {[%clk 0:00:57.7]} 15. Ne2 {[%clk 0:02:39]}
15... Nxd3 {[%clk 0:00:54.6]} 16. Qxd3 {[%clk 0:02:39.9]} 16... Nxe5 {[%clk
0:00:54.3]} 17. Nxe5 {[%clk 0:02:39.3]} 17... Bxe5 {[%clk 0:00:55.2]} 18. Bxd4
{[%clk 0:02:39]} 18... Bxd4 {[%clk 0:00:53.6]} 19. Nxd4 {[%clk 0:02:33.9]} 19...
Qd5 {[%clk 0:00:47.9]} 20. Rad1 {[%clk 0:02:30.5]} 20... Rd8 {[%clk 0:00:47.3]}
21. Qe3 {[%clk 0:02:22.7]} 21... Bd7 {[%clk 0:00:45.3]} 22. Nb5 {[%clk
0:02:09.5]} 22... Bxb5 {[%clk 0:00:38.5]} 23. Rxd5 {[%clk 0:02:08.7]} 23... Rxd5
{[%clk 0:00:39.4]} 24. h3 {[%clk 0:02:01.3]} 24... Rd3 {[%clk 0:00:35.2]} 25.
Qe5 {[%clk 0:01:58.9]} 25... Rxa3 {[%clk 0:00:34]} 26. Rd1 {[%clk 0:01:58.9]}
26... Rd3 {[%clk 0:00:29.7]} 27. Rxd3 {[%clk 0:01:50.4]} 27... Bxd3 {[%clk
0:00:30.6]} 28. Qc7 {[%clk 0:01:40.7]} 28... Be4 {[%clk 0:00:30]} 29. f3 {[%clk
0:01:40.9]} 29... Bd5 {[%clk 0:00:29]} 30. Kf2 {[%clk 0:01:40.9]} 30... Re8
{[%clk 0:00:26.4]} 31. Ke3 {[%clk 0:01:32]} 31... g6 {[%clk 0:00:25.9]} 32. h4
{[%clk 0:01:30.8]} 32... h5 {[%clk 0:00:24.4]} 33. g4 {[%clk 0:01:31.1]} 33...
hxg4 {[%clk 0:00:24.1]} 34. fxg4 {[%clk 0:01:32]} 34... Kg7 {[%clk 0:00:24.7]}
35. Qe5+ {[%clk 0:01:31.3]} 35... f6 {[%clk 0:00:22.3]} 36. Qc7+ {[%clk
0:01:30.5]} 36... Kg8 {[%clk 0:00:23]} 37. g5 {[%clk 0:01:24.9]} 37... fxg5
{[%clk 0:00:21.9]} 38. hxg5 {[%clk 0:01:25.1]} 38... Rf8 {[%clk 0:00:22.3]} 39.
Qe7 {[%clk 0:01:11.8]} 39... Rf5 {[%clk 0:00:21.8]} 40. Kd4 {[%clk 0:01:00.3]}
40... Rf4+ {[%clk 0:00:19.7]} 41. Ke5 {[%clk 0:00:58.8]} 41... Rf5+ {[%clk
0:00:20.6]} 42. Kd6 {[%clk 0:00:58.8]} 42... Rf7 {[%clk 0:00:20]} 43. Qe8+
{[%clk 0:00:53.8]} 43... Kg7 {[%clk 0:00:19.8]} 44. Qd8 {[%clk 0:00:49]} 44...
Rf8 {[%clk 0:00:19.5]} 45. Qd7+ {[%clk 0:00:30.8]} 45... Rf7 {[%clk 0:00:19.6]}
46. Qa4 {[%clk 0:00:30.7]} 46... Rf5 {[%clk 0:00:19.6]} 47. Qa1+ {[%clk
0:00:30.9]} 47... Kg8 {[%clk 0:00:16.5]} 48. Qc1 {[%clk 0:00:30.9]} 48... Kg7
{[%clk 0:00:15.8]} 49. Qe3 {[%clk 0:00:31]} 49... Kg8 {[%clk 0:00:15.5]} 50. Qg3
{[%clk 0:00:31.3]} 50... Kg7 {[%clk 0:00:15.5]} 51. Qh4 {[%clk 0:00:31.6]} 51...
Bc6 {[%clk 0:00:09]} 52. Qh6+ {[%clk 0:00:31.6]} 52... Kf7 {[%clk 0:00:09]} 53.
Qh7+ {[%clk 0:00:32.1]} 53... Kf8 {[%clk 0:00:09]} 54. Qxg6 {[%clk 0:00:28.8]}
54... Rf7 {[%clk 0:00:09.3]} 55. Qxe6 {[%clk 0:00:27.1]} 1-0

[Event "Late-Titled-Tuesday-Blitz-September-26-2023"]
[Site "Chess.com"]
[Date "2023.09.26"]
[Round "3"]
[White "Chempiblinka"]
[Black "gabduschew"]
[Result "0-1"]
[WhiteElo "2173"]
[BlackElo "2390"]
[TimeControl "180+1"]
[EndTime "14:27:55 PDT"]
[Termination "gabduschew won on time"]

1. Nf3 {[%clk 0:02:53.1]} 1... g6 {[%clk 0:02:58.6]} 2. d4 {[%clk 0:02:52.4]}
2... Bg7 {[%clk 0:02:58.6]} 3. g3 {[%clk 0:02:53.2]} 3... d6 {[%clk 0:02:57]} 4.
Bg2 {[%clk 0:02:51.5]} 4... Nd7 {[%clk 0:02:53.9]} 5. O-O {[%clk 0:02:52.3]}
5... e5 {[%clk 0:02:53.4]} 6. c4 {[%clk 0:02:51.4]} 6... Ngf6 {[%clk 0:02:52]}
7. Nc3 {[%clk 0:02:49.6]} 7... O-O {[%clk 0:02:51.6]} 8. e4 {[%clk 0:02:50.1]}
8... Re8 {[%clk 0:02:49.2]} 9. Re1 {[%clk 0:02:44.2]} 9... h6 {[%clk 0:02:41]}
10. b3 {[%clk 0:02:43.5]} 10... c6 {[%clk 0:02:32.3]} 11. Bb2 {[%clk 0:02:41.2]}
11... Qc7 {[%clk 0:02:27.3]} 12. h3 {[%clk 0:02:40.8]} 12... Nf8 {[%clk
0:02:21.5]} 13. Rc1 {[%clk 0:02:37]} 13... N6h7 {[%clk 0:02:18.9]} 14. Ba3
{[%clk 0:02:33.1]} 14... exd4 {[%clk 0:02:07.5]} 15. Nxd4 {[%clk 0:02:32.4]}
15... Ne6 {[%clk 0:02:03.9]} 16. Nxe6 {[%clk 0:02:24.6]} 16... Rxe6 {[%clk
0:02:03.4]} 17. Nd5 {[%clk 0:02:18]} 17... Qd8 {[%clk 0:01:57.4]} 18. Nf4 {[%clk
0:02:15.6]} 18... Rf6 {[%clk 0:01:56.4]} 19. e5 {[%clk 0:02:13]} 19... Rxf4
{[%clk 0:01:53.9]} 20. gxf4 {[%clk 0:02:10.9]} 20... Qh4 {[%clk 0:01:53]} 21.
exd6 {[%clk 0:01:33]} 21... Bd7 {[%clk 0:01:41.6]} 22. Re7 {[%clk 0:01:20.8]}
22... Rd8 {[%clk 0:01:36.9]} 23. Qf3 {[%clk 0:01:16.6]} 23... Bf6 {[%clk
0:01:25.9]} 24. Re2 {[%clk 0:01:05.6]} 24... Nf8 {[%clk 0:01:24.1]} 25. Rce1
{[%clk 0:01:04.5]} 25... Ne6 {[%clk 0:01:23.2]} 26. Qg3 {[%clk 0:00:43.9]} 26...
Qxf4 {[%clk 0:01:19.2]} 27. Qxf4 {[%clk 0:00:24.7]} 27... Nxf4 {[%clk
0:01:18.6]} 28. Re4 {[%clk 0:00:25.1]} 28... Ne6 {[%clk 0:01:10.8]} 29. Bc1
{[%clk 0:00:23.1]} 29... Kg7 {[%clk 0:01:04.4]} 30. f4 {[%clk 0:00:23.1]} 30...
Nc5 {[%clk 0:01:01.6]} 31. R4e2 {[%clk 0:00:21.5]} 31... Bf5 {[%clk 0:00:59]}
32. Kh2 {[%clk 0:00:21.2]} 32... Rxd6 {[%clk 0:00:58]} 33. Ba3 {[%clk
0:00:20.5]} 33... b6 {[%clk 0:00:53.6]} 34. Bxc5 {[%clk 0:00:19.5]} 34... bxc5
{[%clk 0:00:53.4]} 35. Bf3 {[%clk 0:00:19.3]} 35... Bc3 {[%clk 0:00:49.9]} 36.
Rc1 {[%clk 0:00:18.1]} 36... Bd2 {[%clk 0:00:46.3]} 37. Rf1 {[%clk 0:00:11.2]}
37... Bxf4+ {[%clk 0:00:45.6]} 38. Kg2 {[%clk 0:00:12.1]} 38... Bd3 {[%clk
0:00:44.5]} 39. Be4 {[%clk 0:00:03.9]} 39... Bxe2 {[%clk 0:00:40.1]} 40. Rxf4
{[%clk 0:00:04.5]} 40... f5 {[%clk 0:00:37.4]} 41. Bf3 {[%clk 0:00:03.8]} 41...
Bxf3+ {[%clk 0:00:36.8]} 42. Rxf3 {[%clk 0:00:04.7]} 42... Rd2+ {[%clk
0:00:36.6]} 43. Kg3 {[%clk 0:00:05.6]} 43... Kf6 {[%clk 0:00:36.5]} 44. Re3
{[%clk 0:00:05.7]} 44... g5 {[%clk 0:00:35.2]} 45. Kf3 {[%clk 0:00:04.9]} 45...
Rh2 {[%clk 0:00:31.3]} 46. Kg3 {[%clk 0:00:03.8]} 46... f4+ {[%clk 0:00:31.3]}
0-1

[Event "Late-Titled-Tuesday-Blitz-September-26-2023"]
[Site "Chess.com"]
[Date "2023.09.26"]
[Round "3"]
[White "Roedor"]
[Black "LeninGuerra"]
[Result "1-0"]
[WhiteElo "2370"]
[BlackElo "2549"]
[TimeControl "180+1"]
[EndTime "14:27:56 PDT"]
[Termination "Roedor won by resignation"]

1. d4 {[%clk 0:03:00.9]} 1... Nf6 {[%clk 0:02:58.7]} 2. c4 {[%clk 0:03:00.9]}
2... e6 {[%clk 0:02:58.9]} 3. g3 {[%clk 0:03:01]} 3... Bb4+ {[%clk 0:02:58.3]}
4. Nd2 {[%clk 0:03:00.2]} 4... c5 {[%clk 0:02:56.4]} 5. Nf3 {[%clk 0:02:59.7]}
5... cxd4 {[%clk 0:02:54.8]} 6. Nxd4 {[%clk 0:03:00.6]} 6... Nc6 {[%clk
0:02:55]} 7. Nc2 {[%clk 0:03:00.3]} 7... Be7 {[%clk 0:02:53.2]} 8. Bg2 {[%clk
0:03:00.3]} 8... O-O {[%clk 0:02:53.6]} 9. O-O {[%clk 0:03:00.6]} 9... d6 {[%clk
0:02:53.7]} 10. b3 {[%clk 0:03:00.2]} 10... e5 {[%clk 0:02:50]} 11. Bb2 {[%clk
0:03:00]} 11... Be6 {[%clk 0:02:50.2]} 12. e4 {[%clk 0:02:51.1]} 12... Rc8
{[%clk 0:02:49.9]} 13. Ne3 {[%clk 0:02:50.9]} 13... h5 {[%clk 0:02:42.2]} 14. h3
{[%clk 0:02:47.5]} 14... h4 {[%clk 0:02:40]} 15. g4 {[%clk 0:02:47.2]} 15... Nh7
{[%clk 0:02:37.6]} 16. Nf5 {[%clk 0:02:42.3]} 16... g6 {[%clk 0:01:46.3]} 17.
Nxe7+ {[%clk 0:02:25.1]} 17... Qxe7 {[%clk 0:01:47.2]} 18. Nf3 {[%clk
0:02:18.9]} 18... Rfd8 {[%clk 0:01:46]} 19. Qd2 {[%clk 0:02:18.2]} 19... Kg7
{[%clk 0:01:39.6]} 20. Rad1 {[%clk 0:02:10.1]} 20... Rc7 {[%clk 0:01:37.4]} 21.
Ne1 {[%clk 0:01:16.6]} 21... g5 {[%clk 0:01:28.5]} 22. Nc2 {[%clk 0:01:12.6]}
22... f6 {[%clk 0:01:25.9]} 23. Ne3 {[%clk 0:01:11.9]} 23... Nf8 {[%clk
0:01:24.7]} 24. Nf5+ {[%clk 0:01:08.6]} 24... Bxf5 {[%clk 0:01:24.7]} 25. exf5
{[%clk 0:01:09.2]} 25... Qd7 {[%clk 0:01:04.6]} 26. Rfe1 {[%clk 0:01:06.6]}
26... Ne7 {[%clk 0:01:00.3]} 27. Ba3 {[%clk 0:00:57.1]} 27... Nc8 {[%clk
0:00:47.4]} 28. Qe3 {[%clk 0:00:49.1]} 28... b5 {[%clk 0:00:42.4]} 29. c5 {[%clk
0:00:38.2]} 29... a5 {[%clk 0:00:33.8]} 30. cxd6 {[%clk 0:00:35.6]} 30... Rc2
{[%clk 0:00:34.3]} 31. Rc1 {[%clk 0:00:23.2]} 31... Rxc1 {[%clk 0:00:32.4]} 32.
Rxc1 {[%clk 0:00:22.5]} 32... b4 {[%clk 0:00:26.1]} 33. Rc7 {[%clk 0:00:21.8]}
33... bxa3 {[%clk 0:00:26.5]} 34. Rxd7+ {[%clk 0:00:21.7]} 34... Rxd7 {[%clk
0:00:27.4]} 35. Qc5 {[%clk 0:00:04.2]} 35... Nxd6 {[%clk 0:00:26.5]} 36. Qxa3
{[%clk 0:00:04.1]} 36... Nb5 {[%clk 0:00:16.6]} 37. Qxa5 {[%clk 0:00:04.3]}
37... Rd1+ {[%clk 0:00:16.7]} 38. Kh2 {[%clk 0:00:04.2]} 38... Nd4 {[%clk
0:00:17]} 39. Qc7+ {[%clk 0:00:03.7]} 39... Kh8 {[%clk 0:00:15.3]} 40. Qf7
{[%clk 0:00:03.1]} 40... Nd7 {[%clk 0:00:09.6]} 41. Bd5 {[%clk 0:00:03.1]} 41...
Nf3+ {[%clk 0:00:07.6]} 42. Bxf3 {[%clk 0:00:02.8]} 42... Rd2 {[%clk 0:00:08.1]}
43. Bd5 {[%clk 0:00:02.5]} 43... Rxf2+ {[%clk 0:00:08.2]} 44. Kg1 {[%clk
0:00:02.8]} 1-0